fUST/lending_fUST_20250920
["ID","MTS","AMOUNT","RATE_DAILY","PERIOD"]
[386541887,1758371858281,805.44284103,0.000199,2]
[386541888,1758371873974,947.1758971,0.0001978,2]
[386541890,1758371888366,162.05,0.00019341,2]
[386541891,1758371888785,324.11,0.00020262,2]
[386541892,1758371900549,666.0,0.0001978,2]
[386541894,1758371952541,610.40312459,0.00020675,2]
[386541897,1758371969418,155.87,0.00019341,2]
[386541898,1758371969884,311.73,0.00020262,2]
[386541899,1758371974841,-1200.0,0.00020774,2]
[386541900,1758371974876,-300.0,0.00020774,2]
[386541901,1758371974909,-160.0,0.00020774,2]
[386541902,1758371974953,-1200.0,0.00020775,2]
[386541903,1758371974989,-316.73864272,0.00020775,2]
[386541904,1758371975023,-501.35318863,0.00020775,2]
[386541905,1758371975058,-500.0,0.00020775,2]
[386541906,1758371975094,-500.0,0.00020775,2]
[386541907,1758371975127,-143.8263373,0.00020775,2]
[386541908,1758371975496,-356.1736627,0.00020775,2]
[386541909,1758371975531,-500.0,0.00020775,2]
[386541910,1758371975563,-500.0,0.00020775,2]
[386541911,1758371975595,-379.85948557,0.00020775,2]
[386541912,1758371975626,-500.0,0.00020775,2]
[386541913,1758371975657,-500.0,0.00020775,2]
[386541914,1758371975691,-500.0,0.00020775,2]
[386541915,1758371975726,-500.0,0.00020775,2]
[386541916,1758371975758,-500.0,0.00020775,2]
[386541917,1758371975790,-500.0,0.00020775,2]
[386541918,1758371975823,-27.94370346,0.00020775,2]
[386541919,1758371976134,-472.05629654,0.00020775,2]
[386541920,1758371976165,-414.733617,0.00020775,2]
[386541921,1758371976197,-500.0,0.00020775,2]
[386541922,1758371976228,-500.0,0.00020775,2]
[386541923,1758371976262,-500.0,0.00020775,2]
[386541924,1758371976292,-372.66048401,0.00020775,2]
[386541925,1758371976323,-500.0,0.00020775,2]
[386541926,1758371976356,-500.0,0.00020775,2]
[386541927,1758371976385,-500.0,0.00020775,2]
[386541928,1758371976416,-500.0,0.00020775,2]
[386541929,1758371976459,-550.55128715,0.00020775,2]
[386541930,1758371976495,-239.38519124,0.00020775,2]
[386541931,1758371976525,-500.0,0.00020775,2]
[386541932,1758371976559,-500.0,0.00020775,2]
[386541933,1758371976589,-261.378256,0.00020775,2]
[386541934,1758371976621,-500.0,0.00020775,2]
[386541935,1758371976652,-500.0,0.00020775,2]
[386541936,1758371976684,-500.0,0.00020775,2]
[386541937,1758371976718,-500.0,0.00020775,2]
[386541938,1758371976752,-500.0,0.00020775,2]
[386541939,1758371976788,-397.38053122,0.00020775,2]
[386541940,1758371976973,-102.61946878,0.00020775,2]
[386541941,1758371977008,-500.0,0.00020775,2]
[386541942,1758371977039,-500.0,0.00020775,2]
[386541943,1758371977075,-500.0,0.00020775,2]
[386541944,1758371977111,-500.0,0.00020775,2]
[386541945,1758371977146,-500.0,0.00020775,2]
[386541946,1758371977182,-500.0,0.00020775,2]
[386541947,1758371977215,-500.0,0.00020775,2]
[386541948,1758371977257,-500.0,0.00020775,2]
[386541949,1758371977290,-500.0,0.00020775,2]
[386541950,1758371977324,-294.77106244,0.00020775,2]
[386541951,1758371977515,-205.22893756,0.00020775,2]
[386541952,1758371977550,-501.90523995,0.00020775,2]
[386541953,1758371977583,-500.0,0.00020775,2]
[386541954,1758371977617,-500.0,0.00020775,2]
[386541955,1758371977648,-417.15472785,0.00020775,10]
[386541956,1758371977679,-2557.51,0.00020776,3]
[386541957,1758371977758,-1278.76,0.00020776,3]
[386541958,1758371977789,-319.69,0.00020776,3]
[386541959,1758371977823,-159.84,0.00020776,3]
[386541960,1758371977855,-479.56,0.00020776,3]
[386541961,1758371977940,-3337.53,0.00020776,10]
[386541962,1758371978215,-3324.95,0.00020776,10]
[386541963,1758371978247,-639.38,0.00020777,3]
[386541964,1758371978277,-577.35156978,0.00020781,2]
[386541965,1758371978308,-436.64686044,0.00020781,2]
[386541966,1758371978516,-43.35313956,0.00020781,2]
[386541967,1758371978546,-480.0,0.00020781,2]
[386541968,1758371978576,-480.0,0.00020781,2]
[386541969,1758371978606,-302.30870488,0.00020781,2]
[386541970,1758371978637,-200.24447518,0.00020781,2]
[386541971,1758371978668,-197.0,0.00020782,2]
[386541972,1758371978700,-480.0,0.00020782,2]
[386541973,1758371978732,-480.0,0.00020782,2]
[386541974,1758371978765,-480.0,0.00020782,2]
[386541975,1758371978798,-944.17,0.00020782,2]
[386541976,1758371978831,-510.87736076,0.00020782,2]
[386541977,1758371985169,671.0,0.00027,120]
[386541978,1758371995942,-1863.04427566,0.00020775,2]
[386541979,1758371995960,-10000.01,0.00020775,2]
[386541980,1758371995996,-10000.01,0.00020775,2]
[386541981,1758371996119,-10000.01,0.00020775,2]
[386541982,1758371996277,-10000.01,0.00020775,2]
[386541983,1758371996469,-1863.09427566,0.00020775,2]
[386541984,1758371996496,-6273.82144868,0.00020775,2]
[386541985,1758372011896,-1200.0,0.00020781,2]
[386541986,1758372011930,-804.10263924,0.00020782,2]
[386541987,1758372011963,-480.0,0.00020782,2]
[386541988,1758372011997,-983.69,0.00020782,2]
[386541989,1758372012030,-1121.31,0.00020782,2]
[386541990,1758372012066,-341.80472152,0.00020782,2]
[386541991,1758372012181,-138.19527848,0.00020782,2]
[386541992,1758372012213,-160.0,0.00020783,2]
[386541993,1758372012245,-300.0,0.00020784,2]
[386541994,1758372012278,-160.0,0.00020784,2]
[386541995,1758372012309,-417.15472785,0.00020784,2]
[386541996,1758372012342,-160.0,0.00020784,2]
[386541997,1758372012378,-997.3,0.00020785,2]
[386541998,1758372012414,-480.0,0.00020785,2]
[386541999,1758372012448,-480.0,0.00020785,2]
[386542000,1758372012483,-480.0,0.00020785,2]
[386542001,1758372012516,-480.0,0.00020785,2]
[386542002,1758372012610,-2069.18,0.00020785,2]
[386542003,1758372012644,-480.0,0.00020785,2]
[386542004,1758372012676,-480.0,0.00020785,2]
[386542005,1758372012709,-965.05,0.00020785,2]
[386542006,1758372012742,-480.0,0.00020785,2]
[386542007,1758372012774,-480.0,0.00020785,2]
[386542008,1758372012964,-480.0,0.00020782,2]
[386542009,1758372012995,-480.0,0.00020785,2]
[386542010,1758372013028,-187.24627233,0.00020785,2]
[386542011,1758372013062,-480.0,0.00020785,2]
[386542012,1758372013097,-2279.92,0.00020785,2]
[386542013,1758372013128,-349.99579611,0.00020785,2]
[386542014,1758372013161,-480.0,0.00020785,2]
[386542015,1758372013194,-45.68586312,0.00020785,2]
[386542016,1758372013316,-434.31413688,0.00020785,2]
[386542017,1758372013352,-2364.58,0.00020785,2]
[386542018,1758372013391,-480.0,0.00020785,2]
[386542019,1758372013426,-1148.7,0.00020785,2]
[386542020,1758372013460,-480.0,0.00020785,2]
[386542021,1758372013938,-480.0,0.00020785,2]
[386542022,1758372013974,-480.0,0.00020785,2]
[386542023,1758372014008,-526.1,0.00020785,2]
[386542024,1758372014041,-993.75,0.00020785,2]
[386542025,1758372014076,-1925.94,0.00020785,2]
[386542026,1758372014109,-480.0,0.00020785,2]
[386542027,1758372014233,-480.0,0.00020785,2]
[386542028,1758372014267,-319.20721234,0.00020786,2]
[386542029,1758372014299,-480.0,0.00020786,2]
[386542030,1758372014330,-480.0,0.00020786,2]
[386542031,1758372014362,-480.0,0.00020786,2]
[386542032,1758372014396,-480.0,0.00020786,2]
[386542033,1758372014428,-480.0,0.00020786,2]
[386542034,1758372014460,-480.0,0.00020786,2]
[386542035,1758372014493,-480.0,0.00020786,2]
[386542036,1758372014525,-480.0,0.00020786,2]
[386542037,1758372014559,-241.59557532,0.00020786,2]
[386542038,1758372015389,-238.40442468,0.00020786,2]
[386542039,1758372015398,-241.59557532,0.00020786,2]
[386542040,1758372015417,-238.40442468,0.00020786,2]
[386542041,1758372015426,-241.59557532,0.00020786,2]
[386542042,1758372015445,-238.40442468,0.00020786,2]
[386542043,1758372015455,-241.59557532,0.00020786,2]
[386542044,1758372015473,-238.40442468,0.00020786,2]
[386542045,1758372015483,-241.59557532,0.00020786,2]
[386542046,1758372015500,-238.40442468,0.00020786,2]
[386542047,1758372015510,-241.59557532,0.00020786,2]
[386542048,1758372015527,-238.40442468,0.00020786,2]
[386542049,1758372015537,-241.59557532,0.00020786,2]
[386542056,1758372039799,778.5947463,0.000199,2]
[386542057,1758372049755,150.33,0.00019348,2]
[386542058,1758372050188,300.66,0.00020269,2]
[386542059,1758372058785,1096.294623,0.00019797,2]
[386542060,1758372090682,7674.1306307,0.00019786,2]
[386542061,1758372090831,2325.8793693,0.00019786,2]
[386542062,1758372112080,-480.0,0.00020774,2]
[386542063,1758372112113,-480.0,0.00020774,2]
[386542064,1758372112144,-480.50299645,0.00020774,2]
[386542065,1758372112177,-938.99,0.00020774,2]
[386542066,1758372112207,-1965.6340071,0.00020777,10]
[386542067,1758372112517,-1309.7559929,0.00020777,10]
[386542068,1758372112551,-480.0,0.00020782,2]
[386542069,1758372112584,-2080.81,0.00020782,2]
[386542070,1758372112616,-480.0,0.00020782,2]
[386542071,1758372112648,-480.0,0.00020782,2]
[386542072,1758372112699,-480.0,0.00020782,2]
[386542073,1758372112732,-2257.45,0.00020782,2]
[386542074,1758372112764,-300.0,0.00020784,2]
[386542075,1758372112797,-376.47,0.00020785,2]
[386542076,1758372112832,-955.74,0.00020785,2]
[386542077,1758372112864,-480.0,0.00020785,2]
[386542078,1758372113035,-500.0,0.00020785,2]
[386542079,1758372113067,-500.0,0.00020785,2]
[386542080,1758372113103,-195.70869511,0.00020785,2]
[386542081,1758372113137,-500.0,0.00020785,2]
[386542082,1758372113168,-172.28347635,0.00020785,2]
[386542083,1758372113199,-500.0,0.00020785,2]
[386542084,1758372113233,-500.0,0.00020785,2]
[386542085,1758372113267,-500.0,0.00020785,2]
[386542086,1758372113301,-500.0,0.00020785,2]
[386542087,1758372113336,-500.0,0.00020785,2]
[386542088,1758372113370,-500.0,0.00020785,2]
[386542089,1758372113618,-500.0,0.00020785,2]
[386542090,1758372113650,-500.0,0.00020785,2]
[386542091,1758372113686,-500.0,0.00020785,2]
[386542092,1758372113720,-500.0,0.00020785,2]
[386542093,1758372113756,-500.0,0.00020785,2]
[386542094,1758372113789,-424.82770614,0.00020785,2]
[386542095,1758372113824,-500.0,0.00020785,2]
[386542096,1758372113861,-601.40100367,0.00020785,2]
[386542097,1758372113897,-500.33398964,0.00020785,2]
[386542098,1758372113933,-446.8846011,0.00020785,2]
[386542099,1758372114027,-53.1153989,0.00020785,2]
[386542100,1758372114064,-500.0,0.00020785,2]
[386542101,1758372114099,-1532.1255025,0.00020785,2]
[386542102,1758372114271,-4170.4818028,0.00020785,2]
[386542103,1758372114530,-1659.0463944,0.00020785,2]
[386542104,1758372114565,-480.0,0.00020785,2]
[386542105,1758372114601,-480.0,0.00020785,2]
[386542106,1758372114634,-480.0,0.00020785,2]
[386542107,1758372114669,-959.38,0.00020785,2]
[386542108,1758372114703,-482.08386174,0.00020785,2]
[386542109,1758372114738,-438.98948772,0.00020785,2]
[386542110,1758372114841,-41.01051228,0.00020785,2]
[386542111,1758372114876,-233.83455935,0.00020785,2]
[386542112,1758372114910,-480.0,0.00020785,2]
[386542113,1758372114943,-215.49932076,0.00020786,2]
[386542114,1758372114977,-480.0,0.00020786,2]
[386542115,1758372115010,-337.0626027,0.00020786,2]
[386542116,1758372115043,-480.0,0.00020786,2]
[386542117,1758372115076,-480.0,0.00020786,2]
[386542118,1758372115108,-480.0,0.00020786,2]
[386542119,1758372115142,-480.0,0.00020786,2]
[386542120,1758372115176,-480.0,0.00020786,2]
[386542121,1758372115208,-480.0,0.00020786,2]
[386542122,1758372115241,-66.31600982,0.00020786,2]
[386542123,1758372140212,158.78,0.00019379,2]
[386542124,1758372140642,317.55,0.00020301,2]
[386542125,1758372142825,643.86443905,0.00020686,2]
[386542127,1758372193026,634.5600995,0.00019785,2]
[386542128,1758372204264,-1308.39,0.00020774,2]
[386542129,1758372204299,-480.0,0.00020774,2]
[386542130,1758372204334,-1013.89,0.00020774,2]
[386542131,1758372204368,-1721.42,0.00020776,10]
[386542132,1758372204554,-952.61,0.00020776,10]
[386542133,1758372204590,-480.0,0.00020782,2]
[386542134,1758372204624,-480.0,0.00020782,2]
[386542135,1758372204658,-504.18,0.00020782,2]
[386542136,1758372204690,-480.0,0.00020782,2]
[386542137,1758372204724,-300.0,0.00020784,2]
[386542138,1758372204953,-886.43206672,0.00020785,2]
[386542139,1758372204981,-10000.01,0.00020785,2]
[386542140,1758372205007,-10000.01,0.00020785,2]
[386542141,1758372205037,-10000.01,0.00020785,2]
[386542142,1758372205176,-10000.01,0.00020785,2]
[386542143,1758372205327,-886.48206672,0.00020785,2]
[386542144,1758372205355,-8227.04586656,0.00020785,2]
[386542145,1758372205507,-2422.67,0.00020785,2]
[386542146,1758372205544,-1181.0,0.00020785,2]
[386542147,1758372205577,-286.52650787,0.00020785,2]
[386542148,1758372205612,-561.57050594,0.00020785,2]
[386542149,1758372205644,-217.45410568,0.00020785,2]
[386542150,1758372205677,-161.56776102,0.00020785,2]
[386542151,1758372205784,-338.43223898,0.00020785,2]
[386542152,1758372212233,-1195.39,0.00020774,2]
[386542153,1758372212265,-2940.92,0.00020776,10]
[386542154,1758372212304,-1727.39,0.00020776,10]
[386542155,1758372212385,-545.99839977,0.00020785,2]
[386542156,1758372212420,-391.68356704,0.00020785,2]
[386542157,1758372212453,-279.77214272,0.00020785,2]
[386542158,1758372212484,-197.02321859,0.00020785,2]
[386542159,1758372212526,-1232.01,0.00020785,2]
[386542160,1758372212558,-480.0,0.00020785,2]
[386542161,1758372212592,-480.0,0.00020785,2]
[386542162,1758372212626,-500.0,0.00020785,2]
[386542163,1758372212662,-500.0,0.00020785,2]
[386542164,1758372212697,-287.03534376,0.00020785,2]
[386542165,1758372212869,-212.96465624,0.00020785,2]
[386542166,1758372212903,-500.0,0.00020785,2]
[386542167,1758372212938,-500.0,0.00020785,2]
[386542168,1758372212974,-500.0,0.00020785,2]
[386542169,1758372213009,-500.0,0.00020785,2]
[386542170,1758372213044,-500.0,0.00020785,2]
[386542171,1758372213079,-179.90001308,0.00020785,2]
[386542172,1758372213115,-500.0,0.00020785,2]
[386542173,1758372213150,-500.0,0.00020785,2]
[386542174,1758372213187,-500.0,0.00020785,2]
[386542175,1758372213229,-500.0,0.00020785,2]
[386542176,1758372213374,-500.0,0.00020785,2]
[386542177,1758372213407,-480.0,0.00020785,2]
[386542178,1758372213440,-3652.7051424,0.00020785,2]
[386542179,1758372213473,-254.5997152,0.00020785,2]
[386542180,1758372213584,-225.4002848,0.00020785,2]
[386542181,1758372213620,-480.0,0.00020785,2]
[386542182,1758372213654,-417.15472785,0.00020786,2]
[386542183,1758372213688,-160.0,0.00020786,2]
[386542184,1758372213720,-480.0,0.00020786,2]
[386542185,1758372213752,-480.0,0.00020786,2]
[386542186,1758372213785,-488.02973366,0.00020786,2]
[386542187,1758372213819,-480.0,0.00020786,2]
[386542188,1758372213853,-204.24,0.00020786,2]
[386542189,1758372213888,-480.0,0.00020786,2]
[386542190,1758372213920,-480.0,0.00020786,2]
[386542191,1758372213952,-480.0,0.00020786,2]
[386542192,1758372214120,-480.0,0.00020786,2]
[386542193,1758372214151,-480.0,0.00020786,2]
[386542194,1758372214184,-480.0,0.00020786,2]
[386542195,1758372214217,-480.0,0.00020786,2]
[386542196,1758372214250,-481.92061712,0.00020786,2]
[386542197,1758372214399,-480.0,0.00020786,2]
[386542198,1758372214438,-480.0,0.00020786,2]
[386542199,1758372214472,-480.0,0.00020786,2]
[386542200,1758372214510,-480.0,0.00020786,2]
[386542201,1758372214542,-480.0,0.00020786,2]
[386542202,1758372214672,-480.0,0.00020786,2]
[386542203,1758372214705,-480.0,0.00020786,2]
[386542204,1758372214739,-480.0,0.00020786,2]
[386542205,1758372214772,-480.0,0.00020786,2]
[386542206,1758372214804,-480.0,0.00020786,2]
[386542207,1758372214836,-487.30719124,0.00020786,2]
[386542208,1758372214869,-480.0,0.00020786,2]
[386542209,1758372214896,-480.0,0.00020786,2]
[386542210,1758372214922,-480.0,0.00020786,2]
[386542211,1758372214950,-480.0,0.00020786,2]
[386542212,1758372215920,-480.0,0.00020786,2]
[386542213,1758372215939,-4.4,0.00020786,2]
[386542214,1758372215949,-475.6,0.00020786,2]
[386542215,1758372215966,-4.4,0.00020786,2]
[386542216,1758372215975,-475.6,0.00020786,2]
[386542217,1758372215992,-4.4,0.00020786,2]
[386542218,1758372216002,-380.99561752,0.00020786,2]
[386542219,1758372222132,152.71,0.00019377,2]
[386542220,1758372222673,305.43,0.000203,2]
[386542221,1758372222704,781.51086137,0.000199,2]
[386542222,1758372232275,-480.0,0.00020774,2]
[386542223,1758372232310,-1020.46,0.00020782,2]
[386542224,1758372232345,-480.0,0.00020785,2]
[386542225,1758372232377,-483.67266671,0.00020785,2]
[386542226,1758372232411,-494.88396916,0.00020785,2]
[386542227,1758372232444,-99.00438248,0.00020786,2]
[386542228,1758372232478,-485.73466944,0.00020786,2]
[386542229,1758372232511,-483.12558089,0.00020786,2]
[386542230,1758372232545,-480.0,0.00020786,2]
[386542231,1758372232580,-480.0,0.00020786,2]
[386542232,1758372232826,-329.74284097,0.00020786,2]
[386542233,1758372232863,-172.52,0.00020786,2]
[386542234,1758372232897,-480.0,0.00020786,2]
[386542235,1758372232932,-480.0,0.00020786,2]
[386542236,1758372232967,-318.2613158,0.00020786,2]
[386542237,1758372233001,-480.0,0.00020786,2]
[386542238,1758372233035,-480.0,0.00020786,2]
[386542239,1758372233069,-480.0,0.00020786,2]
[386542240,1758372233101,-480.0,0.00020786,2]
[386542241,1758372233133,-481.29508615,0.00020786,2]
[386542242,1758372233166,-485.87168602,0.00020786,2]
[386542243,1758372233347,-827.46,0.00020786,2]
[386542244,1758372233378,-480.0,0.00020786,2]
[386542245,1758372233412,-327.74,0.00020786,2]
[386542246,1758372233444,-480.0,0.00020786,2]
[386542247,1758372233476,-480.0,0.00020786,2]
[386542248,1758372233508,-480.0,0.00020786,2]
[386542249,1758372233545,-480.0,0.00020786,2]
[386542250,1758372233680,-480.0,0.00020786,2]
[386542251,1758372233718,-480.0,0.00020786,2]
[386542252,1758372233752,-482.57435917,0.00020786,2]
[386542253,1758372233929,-4.46128166,0.00020786,2]
[386542254,1758372233961,-480.0,0.00020786,2]
[386542255,1758372233994,-480.0,0.00020786,2]
[386542256,1758372234026,-489.99665952,0.00020786,2]
[386542257,1758372234057,-480.0,0.00020786,2]
[386542258,1758372234090,-480.0,0.00020786,2]
[386542259,1758372234121,-480.0,0.00020786,2]
[386542260,1758372234155,-480.0,0.00020786,2]
[386542261,1758372234185,-465.09751842,0.00020786,2]
[386542262,1758372234217,-480.0,0.00020786,2]
[386542263,1758372234249,-622.81886525,0.00020786,2]
[386542264,1758372234979,-79.68479334,0.00020782,2]
[386542265,1758372234997,-400.31520666,0.00020782,2]
[386542266,1758372235007,-222.50365859,0.00020786,2]
[386542267,1758372235025,-115.2613503,0.00020786,2]
[386542268,1758372252282,-480.0,0.00020774,2]
[386542269,1758372252315,-300.0,0.00020784,2]
[386542270,1758372252352,-480.0,0.00020785,2]
[386542271,1758372252385,-500.0,0.00020785,2]
[386542272,1758372252420,-500.0,0.00020785,2]
[386542273,1758372252455,-500.0,0.00020785,2]
[386542274,1758372252490,-500.0,0.00020785,2]
[386542275,1758372252525,-500.0,0.00020785,2]
[386542276,1758372252559,-500.0,0.00020785,2]
[386542277,1758372252593,-500.0,0.00020785,2]
[386542278,1758372253178,-480.01,0.00020785,2]
[386542280,1758372286511,168.0,0.00020254,2]
[386542281,1758372305624,183.45,0.00019368,2]
[386542282,1758372306413,200.27710604,0.00019803,2]
[386542283,1758372307423,366.9,0.0002029,2]
[386542284,1758372322358,-300.0,0.00020773,2]
[386542285,1758372322520,-300.0,0.00020773,2]
[386542286,1758372322556,-300.0,0.00020773,2]
[386542287,1758372322588,-300.0,0.00020773,2]
[386542288,1758372322620,-1200.0,0.00020773,2]
[386542289,1758372322657,-2182.75,0.00020774,2]
[386542290,1758372322692,-354.51,0.00020774,2]
[386542291,1758372322799,-125.49,0.00020774,2]
[386542292,1758372322837,-483.44452902,0.00020774,2]
[386542293,1758372322870,-480.0,0.00020774,2]
[386542294,1758372322904,-480.0,0.00020774,2]
[386542295,1758372322936,-268.8770511,0.00020774,2]
[386542296,1758372322969,-480.0,0.00020774,2]
[386542297,1758372323003,-480.0,0.00020774,2]
[386542298,1758372323037,-480.0,0.00020774,2]
[386542299,1758372323071,-470.31683976,0.00020777,10]
[386542300,1758372323166,-2503.75316024,0.00020777,10]
[386542301,1758372323199,-2478.39,0.00020777,10]
[386542302,1758372323693,-480.0,0.00020782,2]
[386542303,1758372323706,-972.82,0.00020782,2]
[386542304,1758372323717,-276.42316024,0.00020782,2]
[386542305,1758372323740,-35.72367952,0.00020782,2]
[386542306,1758372332411,-480.0,0.00020774,2]
[386542307,1758372332450,-167.85316024,0.00020782,2]
[386542308,1758372332492,-480.0,0.00020782,2]
[386542309,1758372332535,-480.0,0.00020782,2]
[386542310,1758372332576,-410.29,0.00020783,2]
[386542311,1758372332619,-500.0,0.00020784,2]
[386542312,1758372332660,-269.42530068,0.00020784,2]
[386542313,1758372332704,-500.0,0.00020784,2]
[386542314,1758372332750,-500.0,0.00020784,2]
[386542315,1758372332793,-491.27732576,0.00020784,2]
[386542316,1758372332838,-500.0,0.00020784,2]
[386542317,1758372333001,-500.0,0.00020784,2]
[386542318,1758372333050,-500.0,0.00020784,2]
[386542319,1758372333095,-500.0,0.00020784,2]
[386542320,1758372333144,-500.0,0.00020784,2]
[386542321,1758372333194,-500.0,0.00020784,2]
[386542322,1758372333240,-500.0,0.00020784,2]
[386542323,1758372333289,-500.0,0.00020784,2]
[386542324,1758372333337,-500.0,0.00020784,2]
[386542325,1758372333386,-500.0,0.00020784,2]
[386542326,1758372333433,-500.0,0.00020784,2]
[386542327,1758372333573,-500.0,0.00020784,2]
[386542328,1758372333617,-500.0,0.00020784,2]
[386542329,1758372333661,-500.0,0.00020784,2]
[386542330,1758372333704,-500.0,0.00020784,2]
[386542331,1758372333752,-500.0,0.00020784,2]
[386542332,1758372333798,-500.0,0.00020784,2]
[386542333,1758372333846,-500.0,0.00020784,2]
[386542334,1758372333895,-500.0,0.00020784,2]
[386542335,1758372333942,-500.0,0.00020784,2]
[386542336,1758372333984,-500.0,0.00020784,2]
[386542337,1758372334782,-442.32842664,0.00020784,2]
[386542338,1758372334808,-0.01,0.00020784,2]
[386542339,1758372334891,659.42287607,0.00020684,2]
[386542340,1758372342614,-57.66157336,0.00020784,2]
[386542341,1758372342651,-500.0,0.00020784,2]
[386542342,1758372342687,-651.92633801,0.00020784,2]
[386542343,1758372342724,-500.0,0.00020784,2]
[386542344,1758372342760,-500.0,0.00020784,2]
[386542345,1758372342798,-500.0,0.00020784,2]
[386542346,1758372342836,-500.0,0.00020784,2]
[386542347,1758372342873,-500.0,0.00020784,2]
[386542348,1758372342910,-500.0,0.00020784,2]
[386542349,1758372342947,-500.0,0.00020784,2]
[386542350,1758372342984,-80.83417726,0.00020784,2]
[386542351,1758372343091,-419.16582274,0.00020784,2]
[386542352,1758372343128,-500.0,0.00020784,2]
[386542353,1758372343167,-500.0,0.00020784,2]
[386542354,1758372343205,-500.0,0.00020784,2]
[386542355,1758372343241,-500.0,0.00020784,2]
[386542356,1758372343276,-500.0,0.00020784,2]
[386542357,1758372343311,-500.0,0.00020784,2]
[386542358,1758372343346,-500.0,0.00020784,2]
[386542359,1758372343382,-500.0,0.00020784,2]
[386542360,1758372343417,-500.0,0.00020784,2]
[386542361,1758372343797,-419.16582274,0.00020784,2]
[386542362,1758372343835,-80.83417726,0.00020784,2]
[386542363,1758372343845,-80.84417726,0.00020784,2]
[386542364,1758372352464,-480.0,0.00020774,2]
[386542365,1758372352496,-485.0669406,0.00020774,2]
[386542366,1758372352531,-1014.61,0.00020782,2]
[386542367,1758372352568,-419.15582274,0.00020784,2]
[386542368,1758372352605,-500.0,0.00020784,2]
[386542369,1758372352641,-500.0,0.00020784,2]
[386542370,1758372352681,-500.0,0.00020784,2]
[386542371,1758372352719,-500.0,0.00020784,2]
[386542372,1758372352758,-500.0,0.00020784,2]
[386542373,1758372352956,-202.34447332,0.00020774,2]
[386542374,1758372392494,-277.65552668,0.00020774,2]
[386542375,1758372392528,-480.0,0.00020774,2]
[386542376,1758372392562,-523.18,0.00020774,2]
[386542377,1758372392595,-1526.21,0.00020776,10]
[386542378,1758372392630,-1658.77894664,0.00020776,10]
[386542379,1758372392685,203.37,0.00019368,2]
[386542380,1758372392798,-1068.36105336,0.00020776,10]
[386542381,1758372392832,-480.0,0.00020782,2]
[386542382,1758372392866,-480.0,0.00020782,2]
[386542383,1758372392899,-300.0,0.00020783,2]
[386542384,1758372392932,-293.20628462,0.00020783,2]
[386542385,1758372392964,-219.13351867,0.00020783,2]
[386542386,1758372392997,-417.15472785,0.00020784,2]
[386542387,1758372393029,-160.0,0.00020784,2]
[386542388,1758372393313,-68.70280684,0.00020783,2]
[386542389,1758372393339,-219.13351867,0.00020783,2]
[386542390,1758372393380,-212.16367449,0.00020783,2]
[386542391,1758372393416,-500.0,0.00020783,2]
[386542392,1758372393451,-500.0,0.00020783,2]
[386542393,1758372393488,-500.0,0.00020783,2]
[386542394,1758372393525,-500.0,0.00020783,2]
[386542395,1758372393561,-500.0,0.00020783,2]
[386542396,1758372393597,-500.0,0.00020783,2]
[386542397,1758372393633,-500.0,0.00020783,2]
[386542398,1758372393677,406.75,0.0002029,2]